[Event "European Online Club-ch-H 2021"]
[Site "Online"]
[Date "2021.03.27"]
[Round "2.8"]
[White "Arndt, Magnus"]
[Black "Ould Ahmed, Samy"]
[Result "1-0"]
[ECO "C45"]
[WhiteElo "2282"]
[BlackElo "2110"]
[Annotator "NA"]
[PlyCount "43"]
[EventDate "2021.03.27"]
[EventType "team-tourn"]
[EventCountry "NET"]
[SourceTitle "playchess.com"]
[Source "ChessBase"]
[SourceQuality "1"]
[TimeControl "900+5"]

1. e4 {[%emt 0:00:00]} e5 {[%emt 0:00:06]} 2. Nf3 {[%emt 0:00:03]} Nc6 {[%emt 0:00:08]} 3. d4 {[%emt 0:00:05]} exd4 {[%emt 0:00:17]} 4. Nxd4 {[%emt 0:00:00]} Nf6 {[%emt 0:00:56]} 5. Nxc6 {[%emt 0:00:04]} bxc6 {[%emt 0:00:00]} 6. e5 {[%emt 0:00:03]} Qe7 {[%emt 0:00:04]} 7. Qe2 {[%emt 0:00:02]} Nd5 {[%emt 0:00:01]} 8. c4 {[%emt 0:00:02]} Ba6 {[%emt 0:00:02]} 9. Nd2 {[%emt 0:00:03]} g5 {[%emt 0:01:57]} 10. Ne4 {[%emt 0:02:39]} h6 {[%emt 0:04:49]} 11. h4 {[%emt 0:01:21]} Nf4 {[%emt 0:03:39]} 12. Bxf4 {[%emt 0:04:27]} gxf4 {[%emt 0:00:00]} 13. Nf6+ {[%emt 0:00:02]} Kd8 {[%emt 0:00:03]} 14. O-O-O {[%emt 0:00:02]} Bc8 {[%emt 0:00:13]} 15. Qe4 {[%emt 0:01:14]} Qc5 {[%emt 0:02:00]} 16. Qxf4 {[%emt 0:01:30]} h5 {[%emt 0:00:23]} 17. Ne4 {[%emt 0:00:47]} Qe7 {[%emt 0:00:29]} 18. Ng5 {[%emt 0:00:09]} Bh6 {[%emt 0:00:28]} 19. Be2 {[%emt 0:00:13]} Re8 {[%emt 0:00:44]} 20. Bxh5 {[%emt 0:02:09]} Qxe5 {[%emt 0:00:09]} 21. Nxf7+ {[%emt 0:00:23]} Ke7 {[%emt 0:00:05]} 22. Qxh6 {[%emt 0:00:00]} 1-0

[Event "European Online Club-ch-H 2021"]
[Site "Online"]
[Date "2021.03.27"]
[Round "2.9"]
[White "Manik, Mikulas"]
[Black "Nagy, Gabor"]
[Result "1-0"]
[ECO "B42"]
[WhiteElo "2353"]
[BlackElo "2509"]
[Annotator "ChessBase"]
[PlyCount "105"]
[EventDate "2021.03.27"]
[EventType "team-tourn"]
[EventCountry "NET"]
[SourceTitle "playchess.com"]
[Source "ChessBase"]
[SourceQuality "1"]
[TimeControl "900+5"]

1. e4 {[%emt 0:00:00]} c5 {[%emt 0:00:04]} 2. Nf3 {[%emt 0:00:03]} e6 {[%emt 0:00:03]} 3. d4 {[%emt 0:00:02]} cxd4 {[%emt 0:00:02]} 4. Nxd4 {[%emt 0:00:01]} a6 {[%emt 0:00:04]} 5. Bd3 {[%emt 0:00:04]} Nf6 {[%emt 0:00:06]} 6. Qe2 {[%emt 0:00:03]} d6 {[%emt 0:00:23]} 7. c4 {[%emt 0:00:10]} Qc7 {[%emt 0:00:04]} 8. Nc3 {[%emt 0:00:03]} Nbd7 {[%emt 0:00:09]} 9. O-O {[%emt 0:00:06]} g6 {[%emt 0:00:14]} 10. a4 {[%emt 0:00:08]} Bg7 {[%emt 0:00:10]} 11. a5 {[%emt 0:00:05]} O-O {[%emt 0:00:33]} 12. Nb3 {[%emt 0:00:11]} Ne5 {[%emt 0:00:10]} 13. Be3 {[%emt 0:00:22]} Bd7 {[%emt 0:00:21]} 14. Bb6 {[%emt 0:00:41]} Qb8 {[%emt 0:00:12]} 15. h3 {[%emt 0:01:46]} d5 {[%emt 0:02:12]} 16. cxd5 {[%emt 0:00:28]} exd5 {[%emt 0:00:03]} 17. exd5 {[%emt 0:00:46]} Re8 {[%emt 0:00:03]} 18. Qd1 {[%emt 0:00:07]} Nxd3 {[%emt 0:00:52]} 19. Qxd3 {[%emt 0:00:03]} Bf5 {[%emt 0:00:02]} 20. Qd2 {[%emt 0:00:25]} Ne4 {[%emt 0:00:37]} 21. Nxe4 {[%emt 0:00:03]} Rxe4 {[%emt 0:00:04]} 22. d6 {[%emt 0:01:23]} Be6 {[%emt 0:01:57]} 23. Rfe1 {[%emt 0:02:19]} Rxe1+ {[%emt 0:01:06]} 24. Rxe1 {[%emt 0:00:03]} Bxb3 {[%emt 0:00:35]} 25. d7 {[%emt 0:00:12]} Bf6 {[%emt 0:00:04]} 26. d8=Q+ {[%emt 0:00:14]} Qxd8 {[%emt 0:00:05]} 27. Bxd8 {[%emt 0:00:02]} Rxd8 {[%emt 0:00:02]} 28. Qxd8+ {[%emt 0:00:25]} Bxd8 {[%emt 0:00:02]} 29. Re8+ {[%emt 0:00:02]} Kg7 {[%emt 0:00:01]} 30. Rxd8 {[%emt 0:00:02]} Ba4 {[%emt 0:00:01]} 31. f4 {[%emt 0:00:28]} Kf6 {[%emt 0:00:04]} 32. Kf2 {[%emt 0:00:03]} Ke7 {[%emt 0:00:05]} 33. Rh8 {[%emt 0:00:10]} h5 {[%emt 0:00:02]} 34. g4 {[%emt 0:00:10]} hxg4 {[%emt 0:00:01]} 35. hxg4 {[%emt 0:00:02]} Bc6 {[%emt 0:00:02]} 36. Ke3 {[%emt 0:00:03]} Bd7 {[%emt 0:00:12]} 37. g5 {[%emt 0:00:11]} Ke6 {[%emt 0:00:04]} 38. Rf8 {[%emt 0:00:25]} Bc6 {[%emt 0:00:10]} 39. b4 {[%emt 0:00:17]} Ke7 {[%emt 0:00:05]} 40. Rb8 {[%emt 0:00:11]} Ke6 {[%emt 0:00:01]} 41. Rc8 {[%emt 0:00:17]} Kd7 {[%emt 0:00:07]} 42. Rh8 {[%emt 0:00:10]} Ke6 {[%emt 0:00:02]} 43. Rh2 {[%emt 0:00:07]} Kf5 {[%emt 0:00:11]} 44. Rc2 {[%emt 0:00:04]} Ke6 {[%emt 0:00:05]} 45. Rc5 {[%emt 0:00:03]} Kd6 {[%emt 0:00:10]} 46. f5 {[%emt 0:00:16]} Bd7 {[%emt 0:00:03]} 47. f6 {[%emt 0:00:26]} Bc6 {[%emt 0:00:03]} 48. Kd4 {[%emt 0:00:03]} Bg2 {[%emt 0:00:08]} 49. Re5 {[%emt 0:00:05]} Kc6 {[%emt 0:00:17]} 50. Re8 {[%emt 0:01:33]} Bd5 {[%emt 0:00:41]} 51. Rc8+ {[%emt 0:00:17]} Kd7 {[%emt 0:00:02]} 52. Rb8 {[%emt 0:00:14]} Bg2 {[%emt 0:00:07]} 53. Ke5 {[%emt 0:00:12]} 1-0

[Event "European Online Club-ch-H 2021"]
[Site "Online"]
[Date "2021.03.27"]
[Round "2.10"]
[White "Mihok, Oliver"]
[Black "Danada, Tomas"]
[Result "1-0"]
[ECO "B35"]
[WhiteElo "2540"]
[BlackElo "2321"]
[Annotator "ChessBase"]
[PlyCount "45"]
[EventDate "2021.03.27"]
[EventType "team-tourn"]
[EventCountry "NET"]
[SourceTitle "playchess.com"]
[Source "ChessBase"]
[SourceQuality "1"]
[TimeControl "900+5"]

1. e4 {[%emt 0:00:00]} c5 {[%emt 0:00:03]} 2. Nf3 {[%emt 0:00:06]} Nc6 {[%emt 0:00:09]} 3. Nc3 {[%emt 0:00:03]} g6 {[%emt 0:00:04]} 4. d4 {[%emt 0:00:04]} cxd4 {[%emt 0:00:02]} 5. Nxd4 {[%emt 0:00:01]} Bg7 {[%emt 0:00:01]} 6. Be3 {[%emt 0:00:02]} Nf6 {[%emt 0:00:03]} 7. Bc4 {[%emt 0:00:02]} O-O {[%emt 0:00:02]} 8. Bb3 {[%emt 0:00:18]} Re8 {[%emt 0:00:03]} 9. h4 {[%emt 0:00:05]} h5 {[%emt 0:00:42]} 10. f3 {[%emt 0:00:04]} e6 {[%emt 0:00:02]} 11. Qd2 {[%emt 0:00:04]} d5 {[%emt 0:00:03]} 12. exd5 {[%emt 0:00:04]} exd5 {[%emt 0:00:39]} 13. O-O-O {[%emt 0:00:54]} Ne5 {[%emt 0:01:03]} 14. Bg5 {[%emt 0:01:25]} Nc4 {[%emt 0:01:28]} 15. Qf4 {[%emt 0:00:35]} Ne3 {[%emt 0:04:24]} 16. Rd3 {[%emt 0:00:26]} Nf5 {[%emt 0:00:21]} 17. Ndb5 {[%emt 0:01:45]} Be6 {[%emt 0:02:03]} 18. Nc7 {[%emt 0:00:21]} Rc8 {[%emt 0:00:02]} 19. Nxe8 {[%emt 0:00:07]} Qxe8 {[%emt 0:00:02]} 20. g4 {[%emt 0:00:45]} d4 {[%emt 0:00:39]} 21. gxf5 {[%emt 0:00:27]} dxc3 {[%emt 0:00:06]} 22. fxe6 {[%emt 0:00:16]} cxb2+ {[%emt 0:00:02]} 23. Kb1 {[%emt 0:00:02]} 1-0

[Event "European Online Club-ch-H 2021"]
[Site "Online"]
[Date "2021.03.27"]
[Round "2.11"]
[White "Zambor, Norbert"]
[Black "Glek, Igor"]
[Result "0-1"]
[ECO "B28"]
[WhiteElo "2260"]
[BlackElo "2475"]
[Annotator "ChessBase"]
[PlyCount "76"]
[EventDate "2021.03.27"]
[EventType "team-tourn"]
[EventCountry "NET"]
[SourceTitle "playchess.com"]
[Source "ChessBase"]
[SourceQuality "1"]
[TimeControl "900+5"]

1. e4 {[%emt 0:00:00]} c5 {[%emt 0:00:06]} 2. Nf3 {[%emt 0:00:06]} a6 {[%emt 0:00:01]} 3. c3 {[%emt 0:00:17]} e6 {[%emt 0:00:03]} 4. d4 {[%emt 0:00:23]} d5 {[%emt 0:00:02]} 5. e5 {[%emt 0:00:34]} Bd7 {[%emt 0:00:03]} 6. Bd3 {[%emt 0:00:20]} cxd4 {[%emt 0:00:05]} 7. cxd4 {[%emt 0:00:06]} Bb5 {[%emt 0:00:01]} 8. Bxb5+ {[%emt 0:00:41]} axb5 {[%emt 0:00:03]} 9. O-O {[%emt 0:00:21]} b4 {[%emt 0:00:05]} 10. Re1 {[%emt 0:03:34]} Nc6 {[%emt 0:00:09]} 11. Nbd2 {[%emt 0:00:34]} Nge7 {[%emt 0:00:02]} 12. Nb3 {[%emt 0:01:55]} Nf5 {[%emt 0:00:10]} 13. Bg5 {[%emt 0:00:15]} Be7 {[%emt 0:00:13]} 14. Bxe7 {[%emt 0:00:05]} Qxe7 {[%emt 0:00:02]} 15. Qd3 {[%emt 0:01:29]} O-O {[%emt 0:00:05]} 16. h3 {[%emt 0:02:22]} Ra7 {[%emt 0:00:07]} 17. g4 {[%emt 0:01:16]} Nh4 {[%emt 0:00:04]} 18. Nxh4 {[%emt 0:01:25]} Qxh4 {[%emt 0:00:05]} 19. Kg2 {[%emt 0:00:18]} Rfa8 {[%emt 0:00:26]} 20. Nc1 {[%emt 0:00:29]} h5 {[%emt 0:00:07]} 21. gxh5 {[%emt 0:00:10]} Nxd4 {[%emt 0:00:38]} 22. Nb3 {[%emt 0:00:03]} Nc6 {[%emt 0:00:24]} 23. Qe3 {[%emt 0:00:04]} Qxh5 {[%emt 0:00:14]} 24. Kh2 {[%emt 0:00:06]} Rxa2 {[%emt 0:00:18]} 25. Rab1 {[%emt 0:00:02]} Ne7 {[%emt 0:00:38]} 26. Rg1 {[%emt 0:00:04]} Nf5 {[%emt 0:00:08]} 27. Qf4 {[%emt 0:00:03]} Qe2 {[%emt 0:01:12]} 28. Rg2 {[%emt 0:00:07]} Qe4 {[%emt 0:00:35]} 29. Qxe4 {[%emt 0:00:06]} dxe4 {[%emt 0:00:02]} 30. Rg4 {[%emt 0:00:02]} Ne7 {[%emt 0:01:04]} 31. Nc5 {[%emt 0:00:13]} Nd5 {[%emt 0:00:57]} 32. Rxe4 {[%emt 0:00:05]} Ra1 {[%emt 0:00:31]} 33. Rxa1 {[%emt 0:00:02]} Rxa1 {[%emt 0:00:01]} 34. Nd3 {[%emt 0:00:04]} b3 {[%emt 0:00:35]} 35. Rc4 {[%emt 0:00:03]} Rd1 {[%emt 0:00:08]} 36. Rc8+ {[%emt 0:00:03]} Kh7 {[%emt 0:00:03]} 37. Nc5 {[%emt 0:00:01]} Rc1 {[%emt 0:00:11]} 38. Kg3 {[%emt 0:00:13]} b6 {[%emt 0:00:03]} 0-1

[Event "European Online Club-ch-H 2021"]
[Site "Online"]
[Date "2021.03.27"]
[Round "2.12"]
[White "Meessen, Rudolf"]
[Black "Kusiak, Matej"]
[Result "0-1"]
[ECO "D00"]
[WhiteElo "2223"]
[BlackElo "2251"]
[Annotator "NA"]
[PlyCount "94"]
[EventDate "2021.03.27"]
[EventType "team-tourn"]
[EventCountry "NET"]
[SourceTitle "playchess.com"]
[Source "ChessBase"]
[SourceQuality "1"]
[TimeControl "900+5"]

1. d4 {[%emt 0:00:13]} d5 {[%emt 0:00:13]} 2. Nc3 {[%emt 0:00:02]} c6 {[%emt 0:00:05]} 3. Bf4 {[%emt 0:00:02]} Nf6 {[%emt 0:00:02]} 4. e3 {[%emt 0:00:01]} g6 {[%emt 0:00:01]} 5. h4 {[%emt 0:00:13]} Bg7 {[%emt 0:00:04]} 6. Be2 {[%emt 0:00:07]} h5 {[%emt 0:00:02]} 7. Nf3 {[%emt 0:00:04]} Bf5 {[%emt 0:00:08]} 8. Ne5 {[%emt 0:00:19]} Nbd7 {[%emt 0:00:30]} 9. f3 {[%emt 0:00:13]} Nxe5 {[%emt 0:00:10]} 10. Bxe5 {[%emt 0:00:05]} Qb6 {[%emt 0:00:09]} 11. e4 {[%emt 0:00:41]} Be6 {[%emt 0:01:12]} 12. Qd3 {[%emt 0:00:31]} Bh6 {[%emt 0:00:26]} 13. exd5 {[%emt 0:02:10]} Bxd5 {[%emt 0:00:13]} 14. Nxd5 {[%emt 0:00:11]} cxd5 {[%emt 0:00:03]} 15. Qb5+ {[%emt 0:00:05]} Qxb5 {[%emt 0:00:04]} 16. Bxb5+ {[%emt 0:00:00]} Kf8 {[%emt 0:00:02]} 17. Kf2 {[%emt 0:00:18]} Bg7 {[%emt 0:00:07]} 18. Rhe1 {[%emt 0:00:20]} Ne8 {[%emt 0:00:25]} 19. Bxe8 {[%emt 0:00:11]} Rxe8 {[%emt 0:00:05]} 20. Bxg7+ {[%emt 0:00:10]} Kxg7 {[%emt 0:00:03]} 21. c3 {[%emt 0:00:06]} e6 {[%emt 0:00:03]} 22. f4 {[%emt 0:00:05]} a5 {[%emt 0:00:02]} 23. a3 {[%emt 0:00:05]} b5 {[%emt 0:00:03]} 24. Re3 {[%emt 0:00:03]} Ra8 {[%emt 0:00:06]} 25. Kf3 {[%emt 0:00:05]} Rhb8 {[%emt 0:00:02]} 26. g4 {[%emt 0:00:44]} hxg4+ {[%emt 0:00:20]} 27. Kxg4 {[%emt 0:00:00]} Kf6 {[%emt 0:00:03]} 28. Rh1 {[%emt 0:00:40]} Rh8 {[%emt 0:00:37]} 29. Re5 {[%emt 0:00:44]} b4 {[%emt 0:03:02]} 30. axb4 {[%emt 0:00:26]} axb4 {[%emt 0:00:03]} 31. h5 {[%emt 0:00:26]} Ra2 {[%emt 0:00:36]} 32. Rb1 {[%emt 0:01:09]} bxc3 {[%emt 0:03:22]} 33. bxc3 {[%emt 0:00:07]} Rxh5 {[%emt 0:00:28]} 34. Rxh5 {[%emt 0:02:19]} gxh5+ {[%emt 0:01:32]} 35. Kxh5 {[%emt 0:00:10]} Rg2 {[%emt 0:00:17]} 36. Rb7 {[%emt 0:01:05]} Rg3 {[%emt 0:00:23]} 37. Rc7 {[%emt 0:00:05]} Rg1 {[%emt 0:00:17]} 38. Kh4 {[%emt 0:01:20]} Kg6 {[%emt 0:00:04]} 39. f5+ {[%emt 0:00:49]} exf5 {[%emt 0:00:37]} 40. Rc6+ {[%emt 0:00:02]} f6 {[%emt 0:00:06]} 41. Rd6 {[%emt 0:00:02]} f4 {[%emt 0:00:10]} 42. Rd8 {[%emt 0:00:19]} Rg5 {[%emt 0:00:12]} 43. Re8 {[%emt 0:00:38]} Kf5 {[%emt 0:00:11]} 44. Re1 {[%emt 0:00:23]} f3 {[%emt 0:00:04]} 45. Kh3 {[%emt 0:00:07]} Kf4 {[%emt 0:00:07]} 46. Kh2 {[%emt 0:00:34]} f2 {[%emt 0:00:10]} 47. Rf1 {[%emt 0:00:12]} Kf3 {[%emt 0:00:03]} 0-1

[Event "European Online Club-ch-H 2021"]
[Site "Online"]
[Date "2021.03.27"]
[Round "2.14"]
[White "Asadli, Vugar"]
[Black "Roux, Olivier"]
[Result "1-0"]
[ECO "B23"]
[WhiteElo "2572"]
[BlackElo "2156"]
[Annotator "ChessBase"]
[PlyCount "51"]
[EventDate "2021.03.27"]
[EventType "team-tourn"]
[EventCountry "NET"]
[SourceTitle "playchess.com"]
[Source "ChessBase"]
[SourceQuality "1"]
[TimeControl "900+5"]

1. e4 {[%emt 0:00:00]} c5 {[%emt 0:00:02]} 2. Nc3 {[%emt 0:00:04]} Nc6 {[%emt 0:00:09]} 3. Bb5 {[%emt 0:00:05]} Nd4 {[%emt 0:00:06]} 4. Nf3 {[%emt 0:00:03]} Nxb5 {[%emt 0:00:14]} 5. Nxb5 {[%emt 0:00:02]} d6 {[%emt 0:00:19]} 6. d4 {[%emt 0:00:04]} a6 {[%emt 0:00:49]} 7. Nc3 {[%emt 0:00:04]} cxd4 {[%emt 0:00:05]} 8. Qxd4 {[%emt 0:00:02]} Nf6 {[%emt 0:00:06]} 9. Bg5 {[%emt 0:00:06]} e5 {[%emt 0:00:38]} 10. Qd3 {[%emt 0:00:21]} Be7 {[%emt 0:00:05]} 11. O-O-O {[%emt 0:00:10]} Qa5 {[%emt 0:00:12]} 12. Bxf6 {[%emt 0:00:19]} gxf6 {[%emt 0:00:44]} 13. Nd2 {[%emt 0:00:25]} Be6 {[%emt 0:00:04]} 14. Nc4 {[%emt 0:00:07]} Qc5 {[%emt 0:01:38]} 15. Ne3 {[%emt 0:00:26]} b5 {[%emt 0:00:30]} 16. Ncd5 {[%emt 0:00:22]} Rc8 {[%emt 0:00:08]} 17. f3 {[%emt 0:00:21]} a5 {[%emt 0:01:47]} 18. Rd2 {[%emt 0:00:07]} Rc6 {[%emt 0:00:22]} 19. Rhd1 {[%emt 0:00:04]} Bd8 {[%emt 0:00:11]} 20. Qe2 {[%emt 0:01:10]} O-O {[%emt 0:00:29]} 21. Qe1 {[%emt 0:00:31]} Kh8 {[%emt 0:00:06]} 22. Qh4 {[%emt 0:00:10]} f5 {[%emt 0:00:41]} 23. Nf6 {[%emt 0:01:18]} Kg7 {[%emt 0:00:08]} 24. Qg5+ {[%emt 0:00:04]} Kh8 {[%emt 0:00:09]} 25. Qh6 {[%emt 0:00:02]} Bxf6 {[%emt 0:00:07]} 26. Qxf8# {[%emt 0:00:03]} 1-0

[Event "European Online Club-ch-H 2021"]
[Site "Online"]
[Date "2021.03.27"]
[Round "2.15"]
[White "Kirszenberg, Marc"]
[Black "Sadikhov, Ulvi"]
[Result "1-0"]
[ECO "E61"]
[WhiteElo "2130"]
[BlackElo "2490"]
[Annotator "ChessBase"]
[PlyCount "103"]
[EventDate "2021.03.27"]
[EventType "team-tourn"]
[EventCountry "NET"]
[SourceTitle "playchess.com"]
[Source "ChessBase"]
[SourceQuality "1"]
[TimeControl "900+5"]

1. d4 {[%emt 0:00:00]} d6 {[%emt 0:00:04]} 2. Nf3 {[%emt 0:00:03]} g6 {[%emt 0:00:03]} 3. Bf4 {[%emt 0:00:01]} Bg7 {[%emt 0:00:03]} 4. e3 {[%emt 0:00:02]} Nf6 {[%emt 0:00:03]} 5. h3 {[%emt 0:00:05]} O-O {[%emt 0:00:02]} 6. c4 {[%emt 0:00:01]} b6 {[%emt 0:00:05]} 7. Nc3 {[%emt 0:00:01]} Bb7 {[%emt 0:00:01]} 8. Be2 {[%emt 0:00:13]} Nbd7 {[%emt 0:00:09]} 9. O-O {[%emt 0:00:01]} e6 {[%emt 0:00:01]} 10. Rc1 {[%emt 0:00:03]} Qe7 {[%emt 0:00:03]} 11. b4 {[%emt 0:00:03]} Rfe8 {[%emt 0:00:12]} 12. Bh2 {[%emt 0:00:13]} a6 {[%emt 0:01:17]} 13. Qb3 {[%emt 0:00:15]} Ne4 {[%emt 0:00:25]} 14. Nxe4 {[%emt 0:00:05]} Bxe4 {[%emt 0:00:03]} 15. c5 {[%emt 0:00:11]} bxc5 {[%emt 0:00:57]} 16. dxc5 {[%emt 0:00:14]} dxc5 {[%emt 0:00:29]} 17. bxc5 {[%emt 0:00:18]} e5 {[%emt 0:00:11]} 18. Rfd1 {[%emt 0:01:29]} Bc6 {[%emt 0:00:35]} 19. Bg3 {[%emt 0:03:04]} h6 {[%emt 0:00:45]} 20. Bc4 {[%emt 0:00:24]} Reb8 {[%emt 0:02:26]} 21. Qc2 {[%emt 0:00:46]} Nf8 {[%emt 0:02:11]} 22. Bd5 {[%emt 0:01:26]} Bxd5 {[%emt 0:00:13]} 23. Rxd5 {[%emt 0:00:03]} f6 {[%emt 0:00:16]} 24. Rcd1 {[%emt 0:01:14]} Rb5 {[%emt 0:00:55]} 25. a4 {[%emt 0:00:37]} Rb4 {[%emt 0:00:04]} 26. c6 {[%emt 0:01:59]} Rab8 {[%emt 0:00:09]} 27. Rd7 {[%emt 0:00:22]} Nxd7 {[%emt 0:01:01]} 28. Rxd7 {[%emt 0:00:04]} Qe8 {[%emt 0:00:02]} 29. Rxc7 {[%emt 0:00:07]} Rc8 {[%emt 0:01:50]} 30. Rxc8 {[%emt 0:00:27]} Qxc8 {[%emt 0:00:03]} 31. Qc5 {[%emt 0:01:25]} Rb1+ {[%emt 0:02:02]} 32. Kh2 {[%emt 0:00:02]} Rd1 {[%emt 0:00:05]} 33. Nh4 {[%emt 0:00:43]} Kf7 {[%emt 0:00:50]} 34. Nxg6 {[%emt 0:00:07]} Kxg6 {[%emt 0:00:08]} 35. Qc2+ {[%emt 0:00:02]} Kf7 {[%emt 0:00:02]} 36. Qxd1 {[%emt 0:00:02]} Qxc6 {[%emt 0:00:01]} 37. Qb3+ {[%emt 0:00:04]} Kg6 {[%emt 0:00:04]} 38. f3 {[%emt 0:00:08]} f5 {[%emt 0:00:08]} 39. e4 {[%emt 0:00:12]} fxe4 {[%emt 0:00:08]} 40. fxe4 {[%emt 0:00:02]} Qxe4 {[%emt 0:00:08]} 41. Qb6+ {[%emt 0:00:04]} Kh7 {[%emt 0:00:02]} 42. Qxa6 {[%emt 0:00:04]} h5 {[%emt 0:00:02]} 43. h4 {[%emt 0:00:07]} Bh6 {[%emt 0:00:07]} 44. Qa7+ {[%emt 0:00:06]} Kg6 {[%emt 0:00:06]} 45. Qb6+ {[%emt 0:00:20]} Kh7 {[%emt 0:00:02]} 46. Qc7+ {[%emt 0:00:03]} Kg6 {[%emt 0:00:01]} 47. Qxe5 {[%emt 0:00:03]} Qxa4 {[%emt 0:00:04]} 48. Qe6+ {[%emt 0:00:04]} Kh7 {[%emt 0:00:06]} 49. Qf5+ {[%emt 0:00:02]} Kg8 {[%emt 0:00:04]} 50. Qxh5 {[%emt 0:00:05]} Bg7 {[%emt 0:00:03]} 51. Qg6 {[%emt 0:00:05]} Qd7 {[%emt 0:00:11]} 52. Be5 {[%emt 0:00:06]} 1-0

[Event "European Online Club-ch-H 2021"]
[Site "Online"]
[Date "2021.03.27"]
[Round "2.16"]
[White "Ahmadzada, Ahmad"]
[Black "Marek, Yves"]
[Result "1-0"]
[ECO "C03"]
[WhiteElo "2431"]
[BlackElo "2099"]
[Annotator "NA"]
[PlyCount "79"]
[EventDate "2021.03.27"]
[EventType "team-tourn"]
[EventCountry "NET"]
[SourceTitle "playchess.com"]
[Source "ChessBase"]
[SourceQuality "1"]
[TimeControl "900+5"]

1. e4 {[%emt 0:00:00]} e6 {[%emt 0:00:04]} 2. d4 {[%emt 0:00:05]} d5 {[%emt 0:00:05]} 3. Nd2 {[%emt 0:00:02]} Be7 {[%emt 0:00:04]} 4. e5 {[%emt 0:00:05]} c5 {[%emt 0:00:04]} 5. c3 {[%emt 0:00:01]} Nc6 {[%emt 0:00:03]} 6. Bd3 {[%emt 0:00:02]} cxd4 {[%emt 0:00:09]} 7. cxd4 {[%emt 0:00:02]} Nh6 {[%emt 0:00:09]} 8. Ndf3 {[%emt 0:00:10]} Nf5 {[%emt 0:00:04]} 9. Ne2 {[%emt 0:00:04]} Qa5+ {[%emt 0:00:37]} 10. Bd2 {[%emt 0:00:08]} Qb6 {[%emt 0:00:17]} 11. Bc3 {[%emt 0:00:29]} Bd7 {[%emt 0:00:17]} 12. O-O {[%emt 0:00:34]} Rc8 {[%emt 0:00:18]} 13. Rc1 {[%emt 0:00:35]} a5 {[%emt 0:00:06]} 14. Nf4 {[%emt 0:00:51]} Nh6 {[%emt 0:01:09]} 15. Nh5 {[%emt 0:00:34]} g6 {[%emt 0:00:30]} 16. Bd2 {[%emt 0:02:20]} Nf5 {[%emt 0:00:18]} 17. Bxf5 {[%emt 0:00:26]} gxh5 {[%emt 0:00:39]} 18. Bd3 {[%emt 0:01:11]} Nb4 {[%emt 0:01:31]} 19. Bb1 {[%emt 0:00:23]} Rxc1 {[%emt 0:00:24]} 20. Bxc1 {[%emt 0:00:19]} Bb5 {[%emt 0:00:18]} 21. Re1 {[%emt 0:00:12]} Qa6 {[%emt 0:00:18]} 22. Ng5 {[%emt 0:00:30]} Nd3 {[%emt 0:00:57]} 23. Nxf7 {[%emt 0:00:42]} Rf8 {[%emt 0:02:22]} 24. Nd6+ {[%emt 0:00:45]} Bxd6 {[%emt 0:00:08]} 25. Qxh5+ {[%emt 0:00:16]} Kd7 {[%emt 0:00:14]} 26. Bxd3 {[%emt 0:00:16]} Bxd3 {[%emt 0:00:06]} 27. exd6 {[%emt 0:00:05]} Qxd6 {[%emt 0:00:13]} 28. f3 {[%emt 0:00:35]} Qb4 {[%emt 0:00:16]} 29. Qe5 {[%emt 0:00:09]} Qd6 {[%emt 0:00:31]} 30. Qe3 {[%emt 0:00:24]} Bf5 {[%emt 0:00:12]} 31. Bd2 {[%emt 0:00:22]} b6 {[%emt 0:00:14]} 32. Qf2 {[%emt 0:01:08]} Rc8 {[%emt 0:00:11]} 33. Bc3 {[%emt 0:00:18]} b5 {[%emt 0:00:43]} 34. Bxa5 {[%emt 0:00:34]} Rc2 {[%emt 0:00:05]} 35. Re2 {[%emt 0:00:18]} Rc1+ {[%emt 0:00:45]} 36. Re1 {[%emt 0:00:13]} Rc2 {[%emt 0:00:03]} 37. Re2 {[%emt 0:00:01]} Rc1+ {[%emt 0:00:03]} 38. Be1 {[%emt 0:00:03]} Qb4 {[%emt 0:00:34]} 39. Qe3 {[%emt 0:00:17]} Qc4 {[%emt 0:00:25]} 40. g4 {[%emt 0:00:08]} 1-0

[Event "European Online Club-ch-H 2021"]
[Site "Online"]
[Date "2021.03.27"]
[Round "2.19"]
[White "Kuzubov, Yuriy"]
[Black "Wagner, Dennis"]
[Result "1-0"]
[ECO "D02"]
[WhiteElo "2642"]
[BlackElo "2581"]
[Annotator "ChessBase"]
[PlyCount "77"]
[EventDate "2021.03.27"]
[EventType "team-tourn"]
[EventCountry "NET"]
[SourceTitle "playchess.com"]
[Source "ChessBase"]
[SourceQuality "1"]
[TimeControl "900+5"]

1. d4 {[%emt 0:00:00]} Nf6 {[%emt 0:00:02]} 2. Nf3 {[%emt 0:00:05]} g6 {[%emt 0:00:01]} 3. Nbd2 {[%emt 0:00:04]} d5 {[%emt 0:00:12]} 4. e3 {[%emt 0:00:02]} Bg7 {[%emt 0:00:03]} 5. b4 {[%emt 0:00:04]} a5 {[%emt 0:00:18]} 6. b5 {[%emt 0:00:02]} c5 {[%emt 0:00:05]} 7. bxc6 {[%emt 0:00:30]} Nxc6 {[%emt 0:00:07]} 8. Be2 {[%emt 0:00:08]} O-O {[%emt 0:00:02]} 9. a4 {[%emt 0:00:10]} Bf5 {[%emt 0:00:07]} 10. c3 {[%emt 0:00:03]} Re8 {[%emt 0:01:02]} 11. O-O {[%emt 0:00:25]} e5 {[%emt 0:00:13]} 12. dxe5 {[%emt 0:01:18]} Nxe5 {[%emt 0:00:16]} 13. Nxe5 {[%emt 0:00:39]} Rxe5 {[%emt 0:00:01]} 14. Nf3 {[%emt 0:00:34]} Re8 {[%emt 0:00:02]} 15. Nd4 {[%emt 0:00:05]} Bd7 {[%emt 0:00:37]} 16. c4 {[%emt 0:03:19]} Qc7 {[%emt 0:02:48]} 17. cxd5 {[%emt 0:02:41]} Nxd5 {[%emt 0:00:09]} 18. Bf3 {[%emt 0:00:11]} Nc3 {[%emt 0:01:35]} 19. Qb3 {[%emt 0:00:12]} Bxd4 {[%emt 0:04:43]} 20. exd4 {[%emt 0:00:08]} Ne2+ {[%emt 0:00:01]} 21. Bxe2 {[%emt 0:00:11]} Rxe2 {[%emt 0:00:00]} 22. d5 {[%emt 0:01:46]} Re4 {[%emt 0:01:45]} 23. Qf3 {[%emt 0:02:52]} Rae8 {[%emt 0:02:06]} 24. Bb2 {[%emt 0:00:18]} Rf4 {[%emt 0:00:20]} 25. Qg3 {[%emt 0:00:17]} Rc4 {[%emt 0:00:03]} 26. d6 {[%emt 0:00:10]} Qc5 {[%emt 0:00:01]} 27. h3 {[%emt 0:00:28]} h5 {[%emt 0:00:07]} 28. Rfc1 {[%emt 0:00:14]} Re2 {[%emt 0:00:06]} 29. Rxc4 {[%emt 0:00:15]} Qxc4 {[%emt 0:00:00]} 30. Rc1 {[%emt 0:00:02]} Qe6 {[%emt 0:00:30]} 31. Bc3 {[%emt 0:00:07]} Kh7 {[%emt 0:00:03]} 32. Bxa5 {[%emt 0:00:09]} Bxa4 {[%emt 0:00:01]} 33. Qf4 {[%emt 0:00:02]} Bc6 {[%emt 0:00:02]} 34. Bd2 {[%emt 0:00:04]} Qd5 {[%emt 0:00:09]} 35. Rxc6 {[%emt 0:00:08]} bxc6 {[%emt 0:00:10]} 36. Bc3 {[%emt 0:00:06]} Qe4 {[%emt 0:00:08]} 37. Qf6 {[%emt 0:00:05]} Qb1+ {[%emt 0:00:03]} 38. Kh2 {[%emt 0:00:03]} Kh6 {[%emt 0:00:01]} 39. h4 {[%emt 0:00:04]} 1-0